bitfinex/quotes_ETHUSD_20260227
["timestamp","ask_amount","ask_price","bid_price","bid_amount"]
[1772209429095,0.001,1942.8,1941.9,2.41687751]
[1772209429292,0.001,1942.8,1942.2,3.06354902]
[1772209429462,1.28664577,1943.1,1942.2,3.06354902]
[1772209429665,0.65275544,1943.0,1941.9,1.72767151]
[1772209429859,0.65275544,1943.0,1942.0,0.64667151]
[1772209430083,1.28670993,1943.0,1942.1,1.28726636]
[1772209430286,3.20933936,1943.2,1942.2,0.64667151]
[1772209430881,1.269,1943.1,1942.2,0.64667151]
[1772209432200,2.55561015,1943.1,1942.4,0.64667151]
[1772209432494,1.269,1943.1,1942.4,0.64667151]
[1772209432677,1.269,1943.1,1942.5,0.64667151]
[1772209432883,1.28747754,1943.3,1942.5,0.64667151]
[1772209434204,1.28747754,1943.3,1942.7,0.64667151]
[1772209434581,3.06963295,1943.0,1942.0,0.64821037]
[1772209434780,1.268,1942.9,1942.2,0.64667151]
[1772209434984,1.268,1942.9,1942.3,1.93360654]
[1772209435208,1.268,1942.9,1942.3,0.64667151]
[1772209436103,1.28680255,1942.8,1942.0,5.79739887]
[1772209436402,1.28680255,1942.8,1942.1,2.57420139]
[1772209436707,1.93955799,1942.8,1942.1,2.57420139]
[1772209438699,1.268,1942.7,1942.1,2.57420139]
[1772209440181,1.2868103,1942.8,1942.1,2.57420139]
[1772209440383,5.14717217,1943.2,1942.2,0.64667151]
[1772209440384,0.65275544,1943.0,1942.2,0.64667151]
[1772209440601,1.267,1943.0,1942.2,0.64667151]
[1772209440807,1.2875897,1943.2,1942.2,0.64667151]
[1772209441106,2.5545897,1943.2,1942.4,0.64667151]
[1772209441310,0.65275544,1943.1,1942.3,1.28693503]
[1772209441517,0.65275544,1943.0,1942.3,1.28693503]
[1772209441883,0.65275544,1943.0,1942.1,1.28726636]
[1772209442086,0.65275544,1943.0,1942.1,2.57420139]
[1772209442318,1.93969047,1942.6,1942.1,1.28693503]
[1772209442618,1.267,1942.5,1942.1,1.28693503]
[1772209443321,0.65275544,1942.4,1942.0,0.00153886]
[1772209443504,0.65275544,1942.4,1942.0,1.17220726]
[1772209443703,1.267,1942.5,1942.0,1.17220726]
[1772209444286,1.28706754,1942.4,1942.0,1.17220726]
[1772209444609,1.93982298,1942.4,1942.0,1.17220726]
[1772209444911,5.14774014,1942.9,1942.0,1.17220726]
[1772209444912,3.06963295,1943.0,1942.0,1.81887877]
[1772209445209,1.268,1942.8,1942.0,3.10620702]
[1772209445410,1.92075544,1942.8,1942.0,3.10620702]
[1772209445913,0.65275544,1942.8,1942.0,3.10620702]
[1772209446118,1.268,1942.7,1942.1,0.64667151]
[1772209446412,0.65275544,1942.8,1942.2,1.28720008]
[1772209446618,1.268,1942.8,1942.2,3.10453999]
[1772209446798,5.14653474,1943.1,1942.2,3.10453999]
[1772209447112,0.001,1942.4,1942.2,3.10453999]
[1772209447519,1.268,1942.8,1942.2,3.10453999]
[1772209447520,1.267,1942.8,1942.2,1.93387159]
[1772209447717,1.267,1943.1,1942.4,0.64667151]
[1772209447921,2.41687751,1943.0,1942.1,1.28833054]
[1772209448126,1.91975544,1943.1,1942.2,1.1706684]
[1772209448994,1.28667009,1943.0,1942.2,2.45781343]
[1772209449391,1.28667009,1943.0,1942.2,1.1706684]
[1772209449597,2.41687751,1942.8,1942.2,1.1706684]
[1772209450286,1.28667009,1943.0,1942.2,1.1706684]
[1772209450484,1.267,1942.9,1942.2,1.1706684]
[1772209450690,2.41687751,1942.8,1942.1,0.0011]
[1772209450996,2.41687751,1942.8,1942.1,1.1717684]
[1772209451202,1.28686879,1942.7,1942.1,1.1717684]
[1772209452812,0.72224547,1942.6,1942.1,1.1717684]
[1772209453010,1.29184865,1942.5,1942.1,0.44979081]
[1772209453225,1.28706754,1942.4,1942.1,0.44979081]
[1772209454125,2.578895,1942.5,1942.1,0.44979081]
[1772209454422,1.28667009,1943.1,1942.1,1.73703098]
[1772209454591,0.02266825,1942.8,1942.1,1.73703098]
[1772209455425,1.28686879,1942.7,1942.1,2.44621997]
[1772209455723,1.269,1942.6,1942.1,2.44621997]
[1772209456122,1.269,1942.6,1942.1,1.1589798]
[1772209456322,1.269,1942.6,1942.1,1.9964462]
[1772209456808,1.269,1942.6,1942.1,0.70918899]
[1772209457137,1.269,1942.6,1942.0,1.2899261]
[1772209457314,1.269,1942.6,1942.1,0.44979081]
[1772209458111,2.55593938,1942.6,1942.1,1.7369995]
[1772209458307,2.55593938,1942.6,1942.1,0.44979081]
[1772209458533,2.55593938,1942.6,1942.0,0.00263886]
[1772209458725,2.55593938,1942.6,1942.0,0.42405412]
[1772209459230,2.55593938,1942.6,1941.8,0.0011]
[1772209459430,2.41687751,1942.5,1941.8,0.0011]
[1772209459603,2.55593938,1942.6,1942.1,0.0011]
[1772209460133,2.55693938,1942.6,1942.1,0.0011]
[1772209460636,0.00291343,1942.5,1942.1,0.0011]
[1772209461207,0.00291343,1942.5,1942.0,0.0011]
[1772209465418,2.55693938,1942.6,1942.0,0.0011]
[1772209466217,1.273,1942.5,1942.0,0.72447677]
[1772209466832,2.560047,1942.5,1942.0,2.01178233]
[1772209467337,2.560047,1942.5,1942.0,0.72447677]
[1772209467729,2.560047,1942.5,1942.0,0.0011]
[1772209469444,2.560047,1942.5,1942.0,0.72447677]
[1772209469940,2.56001635,1942.5,1942.0,0.72447677]
[1772209470321,5.148746,1942.6,1942.0,0.72447677]
[1772209470322,1.276,1942.4,1942.0,0.72447677]
[1772209470716,1.28795574,1942.6,1942.0,0.72447677]
[1772209470717,0.001,1942.6,1942.0,0.72447677]
[1772209470914,1.28665472,1943.1,1942.2,0.72287677]
[1772209471139,0.83653886,1943.0,1942.4,0.72287677]
[1772209472047,0.00153886,1943.0,1942.3,1.28713381]
[1772209472349,0.00153886,1943.0,1942.6,0.72287677]
[1772209473132,0.00153886,1943.0,1942.7,0.72287677]
[1772209473846,0.00153886,1943.0,1942.6,2.00976173]
[1772209474421,0.00153886,1943.0,1942.7,0.72287677]
[1772209475055,1.27653886,1943.0,1942.7,0.72287677]
[1772209476057,0.00153886,1943.0,1942.8,0.72287677]
[1772209476236,1.275,1943.1,1942.8,0.72287677]
[1772209476428,0.001,1943.2,1942.8,0.72287677]
[1772209477144,0.001,1943.2,1942.5,0.72210734]
[1772209477330,1.275,1943.2,1942.5,0.72210734]
[1772209477652,0.001,1943.2,1942.5,0.72210734]
[1772209478248,0.001,1943.2,1942.6,1.28693503]
[1772209478450,0.001,1943.2,1942.7,0.72210734]
[1772209480145,2.74201368,1943.9,1942.9,0.72210734]
[1772209480146,1.2862291,1943.7,1942.9,0.72210734]
[1772209480343,5.14461601,1943.8,1943.0,1.28667009]
[1772209480532,5.14461601,1943.8,1943.1,0.72210734]
[1772209481359,1.273,1943.7,1943.1,0.72210734]
[1772209482227,0.00153886,1944.0,1943.1,0.72210734]
[1772209482433,2.56007438,1943.9,1943.3,0.72210734]
[1772209482855,1.274,1943.8,1943.3,0.72210734]
[1772209483243,1.27553886,1944.0,1943.3,0.72210734]
[1772209483441,2.56155413,1944.0,1943.3,0.72210734]
[1772209484030,2.5938595,1944.0,1943.2,1.28653766]
[1772209484236,0.03230537,1943.8,1943.0,0.72210734]
[1772209484437,1.31851208,1943.7,1943.0,0.72210734]
[1772209485332,1.274,1943.6,1943.0,0.72210734]
[1772209485530,1.31851208,1943.7,1943.0,0.72210734]
[1772209485730,1.28620671,1943.7,1943.0,1.28666489]
[1772209485959,2.56020671,1943.7,1943.1,0.72210734]
[1772209486737,0.001,1943.5,1943.1,2.00870655]
[1772209487148,0.001,1943.5,1943.2,0.72210734]
[1772209487461,1.274,1943.8,1943.3,0.72160734]
[1772209488662,1.274,1943.8,1943.4,0.72160734]
[1772209489257,1.274,1943.9,1943.4,0.72160734]
[1772209490563,1.28614054,1943.8,1943.4,0.72160734]
[1772209490971,1.28614054,1943.8,1943.4,2.00801239]
[1772209491174,2.56014054,1943.8,1943.4,2.00801245]
[1772209491335,1.274,1943.8,1943.5,0.72160734]
[1772209491535,0.00153886,1944.0,1943.5,0.72160734]
[1772209492244,1.28754815,1944.0,1943.5,0.72160734]
[1772209492448,0.00153886,1944.0,1943.5,0.72160734]
[1772209492652,0.00153886,1944.0,1943.7,0.72160734]
[1772209493467,0.0219245,1944.5,1943.6,1.28627289]
[1772209493468,0.01862669,1945.5,1943.8,3.3754608]
[1772209493660,1.28531051,1945.1,1944.2,0.72160734]
[1772209493967,1.28690057,1945.0,1944.2,0.72160734]
[1772209494339,1.28688849,1945.0,1944.2,0.72160734]
[1772209494669,0.00153886,1945.0,1944.4,0.72160734]
[1772209494871,8.64016709,1945.9,1944.7,0.72160734]
[1772209494872,0.1255599,1945.9,1944.7,0.72160734]
[1772209495200,1.28481858,1945.8,1944.7,0.72160734]
[1772209495356,5.28017444,1945.9,1944.9,0.72160734]
[1772209495357,1.41031737,1945.9,1944.9,0.72160734]
[1772209496038,1.274,1945.8,1944.9,0.72160734]
[1772209496766,1.273,1945.8,1945.1,0.72160734]
[1772209497144,0.01202081,1946.6,1945.3,0.72160734]
[1772209498074,1.064,1946.6,1945.3,0.72160734]
[1772209498242,0.971,1946.5,1945.6,0.72160734]
[1772209498443,5.13715945,1946.8,1945.6,0.72160734]
[1772209498665,1.272,1946.7,1945.6,0.72160734]
[1772209498863,5.13715945,1946.8,1945.8,0.72160734]
[1772209498864,1.272,1946.8,1945.8,0.72160734]
[1772209500170,1.28415861,1946.9,1945.8,0.72160734]
[1772209500467,1.28415861,1946.9,1945.6,0.72160734]
[1772209500468,0.02125538,1946.6,1945.6,0.72160734]
[1772209500645,3.39671618,1946.6,1945.6,0.72160734]
[1772209500842,1.28455451,1946.2,1945.4,0.72160734]
[1772209501647,3.3754608,1946.1,1945.4,0.72160734]
[1772209501968,1.272,1946.0,1945.4,0.72160734]
[1772209502868,1.28475255,1945.9,1945.1,2.00683759]
[1772209503251,1.28475255,1945.9,1945.2,0.72160734]
[1772209503460,1.272,1945.8,1945.2,0.72160734]
[1772209504944,1.272,1945.8,1945.3,0.72160734]
[1772209505450,1.28475255,1946.0,1945.3,0.72160734]
[1772209505651,1.272,1945.9,1945.3,0.72160734]
[1772209505872,1.271,1946.2,1945.3,0.72160734]
[1772209506052,5.13805718,1946.3,1945.3,0.72160734]
[1772209506252,1.271,1946.2,1945.3,0.72160734]
[1772209506780,1.271,1946.1,1945.3,0.72160734]
[1772209506983,5.13769805,1946.6,1945.5,0.72160734]
[1772209506984,5.13717767,1946.6,1945.5,0.72160734]
[1772209507160,2.55535653,1946.5,1945.6,0.72160734]
[1772209507479,1.271,1946.5,1945.6,0.72160734]
[1772209507679,1.28434285,1946.6,1945.6,0.72160734]
[1772209508084,2.55534285,1946.6,1945.6,0.72160734]
[1772209508270,5.13682659,1946.8,1945.6,0.72160734]
[1772209508473,6.40782659,1946.8,1945.6,0.72160734]
[1772209509184,6.40782659,1946.8,1945.8,0.72160734]
[1772209509893,1.271,1946.7,1945.8,0.72160734]
[1772209510465,1.27313129,1946.7,1945.8,0.72160734]
[1772209511266,1.28429055,1946.6,1945.8,0.72160734]
[1772209511636,4.6464608,1946.5,1945.8,0.72160734]
[1772209511790,3.3754608,1946.2,1945.5,0.72160734]
[1772209511982,3.3754608,1946.2,1945.3,0.72160734]
[1772209512295,1.271,1946.1,1945.3,0.72270734]
[1772209512670,3.3754608,1946.2,1945.3,0.72270734]
[1772209512870,1.271,1946.1,1945.3,0.72270734]
[1772209513065,0.69414372,1946.0,1945.0,0.71551952]
[1772209513296,1.9789623,1945.8,1945.0,0.00263886]
[1772209513520,1.27,1945.7,1945.0,0.00263886]
[1772209514372,1.96414372,1945.7,1945.0,0.00263886]
[1772209514991,0.69414372,1945.6,1944.3,0.71398066]
[1772209515300,1.97916042,1945.5,1944.4,1.99972433]
[1772209515507,0.69414372,1945.4,1944.4,1.99972433]
[1772209515679,1.96514372,1945.4,1944.5,0.71398066]
[1772209515870,1.2850167,1945.5,1944.5,0.71398066]
[1772209516074,1.271,1945.4,1944.5,0.71398066]
[1772209517195,1.271,1945.3,1944.5,0.71398066]
[1772209517381,1.271,1945.3,1944.7,0.71398066]
[1772209517582,2.5550167,1945.5,1944.7,0.71398066]
[1772209517802,1.27,1945.6,1944.7,0.71398066]
[1772209518112,1.28481858,1945.8,1944.7,0.71398066]
[1772209518113,1.27153886,1946.0,1945.2,0.71398066]
[1772209518810,2.55623443,1946.0,1945.2,0.71398066]
[1772209519490,0.00153886,1946.0,1945.3,1.99912948]
[1772209520309,0.00153886,1946.0,1945.4,13.999342]
[1772209520475,1.97823638,1946.9,1945.4,2.375377]
[1772209520679,0.833,1946.8,1945.4,2.375377]
[1772209521205,0.833,1946.8,1945.5,0.71398066]
[1772209521505,2.27823189,1946.7,1945.9,0.71398066]
[1772209521803,0.00153886,1947.0,1946.1,0.71398066]
[1772209522006,1.97788834,1947.5,1946.2,0.71398066]
[1772209522206,0.69414372,1947.5,1946.2,0.71398066]
[1772209522973,1.268,1947.4,1946.2,0.71398066]
[1772209523179,1.28367252,1947.6,1946.2,0.71398066]
[1772209523380,1.268,1947.5,1946.5,1.99833719]
[1772209523604,1.268,1947.5,1946.6,0.71398066]
[1772209523803,1.97781624,1947.6,1946.6,0.71398066]
[1772209524009,1.268,1947.5,1946.6,0.71398066]
[1772209524210,1.97781624,1947.6,1946.6,0.71398066]
[1772209524408,5.13452454,1947.8,1946.7,0.71398066]
[1772209524409,1.268,1947.8,1946.7,0.71398066]
[1772209524612,0.69414372,1947.8,1946.5,1.28435653]
[1772209524813,0.69414372,1947.5,1946.4,0.71398066]
[1772209525312,1.136,1947.7,1946.4,0.71398066]
[1772209525313,0.958,1947.7,1946.6,0.71398066]
[1772209525608,0.69414372,1947.6,1946.6,1.28428893]
[1772209526179,0.69414372,1947.2,1946.0,5.32691826]
[1772209526512,0.69414372,1946.9,1945.6,0.71398066]
[1772209527013,0.69414372,1946.6,1945.7,0.065536]
[1772209527207,1.277,1946.5,1945.7,0.065536]
[1772209527410,1.28442252,1946.4,1945.4,1.2850733]
[1772209527707,1.28442252,1946.4,1945.5,0.065536]
[1772209528620,3.3754608,1946.3,1945.5,0.065536]
[1772209528805,1.276,1946.2,1945.5,0.065536]
[1772209529813,1.28462052,1946.1,1945.5,0.065536]
[1772209530115,1.97876424,1946.1,1945.1,0.0011]
[1772209530283,0.69414372,1946.0,1945.1,0.0011]
[1772209530501,1.28462052,1946.1,1945.2,0.71398066]
[1772209530929,1.28462052,1946.1,1945.2,4.08944146]
[1772209531507,1.28462052,1946.1,1945.2,0.71398066]
[1772209531709,5.1379836,1946.3,1945.3,1.28514882]
[1772209532332,1.276,1946.7,1945.6,0.71398066]
[1772209532720,0.69414372,1946.5,1945.3,1.28514882]
[1772209533114,0.69414372,1946.5,1945.3,1.99912948]
[1772209534168,1.28442252,1946.4,1945.3,1.99912948]
[1772209534941,0.69414372,1946.3,1945.3,1.99912948]
[1772209535110,0.69414372,1946.3,1945.3,1.28514882]
[1772209535311,1.275,1946.2,1945.2,2.36916133]
[1772209535637,0.69414372,1946.1,1945.1,1.28634893]
[1772209535825,6.09257552,1946.4,1945.1,0.0011]
[1772209535826,3.09822022,1946.0,1945.1,0.0011]
[1772209536012,4.37422022,1946.0,1945.1,0.0011]
[1772209536339,1.28475255,1945.9,1945.1,0.0011]
[1772209536924,2.55975255,1945.9,1945.1,0.0011]
[1772209537118,2.55975255,1945.9,1945.1,0.71508066]
[1772209537315,1.28475255,1945.9,1945.1,0.71508066]
[1772209538335,1.28475255,1945.9,1945.1,2.00030215]
[1772209538913,1.28475255,1945.9,1945.1,0.71508066]
[1772209539110,1.28475255,1945.9,1945.1,2.00035658]
[1772209539345,2.4040765,1945.8,1945.1,0.0011]
[1772209539841,2.4040765,1945.8,1945.1,1.28637046]
[1772209540012,2.4040765,1945.8,1945.1,0.0011]
[1772209540927,1.28488461,1945.7,1945.1,0.0011]
[1772209541243,1.28488461,1945.7,1945.2,0.0011]
[1772209541933,1.9740098,1945.7,1945.2,0.0011]
[1772209542130,1.9740098,1945.7,1945.1,0.0011]
[1772209542845,0.68912519,1945.6,1945.1,0.0011]
[1772209543050,1.275,1945.5,1945.1,0.0011]
[1772209544328,1.96412519,1945.5,1945.0,0.00153886]
[1772209544963,1.28508275,1945.4,1945.0,0.00153886]
[1772209545971,1.97420794,1945.4,1945.0,0.00153886]
[1772209549877,0.68912519,1945.3,1945.0,0.00153886]
[1772209550162,0.68912519,1945.3,1944.5,2.01823803]
[1772209550553,0.68912519,1945.3,1944.5,2.01822609]
[1772209550743,0.68912519,1945.3,1944.5,0.73256048]
[1772209550948,0.68912519,1945.3,1944.5,2.01821531]
[1772209551666,0.68912519,1945.1,1944.3,1.28578905]
[1772209551868,1.96912519,1945.1,1944.2,2.01839404]
[1772209552162,0.68912519,1945.0,1944.2,2.01839404]
[1772209552772,3.09320169,1944.9,1944.0,0.00153886]
[1772209552972,0.68912519,1944.8,1944.0,1.28754401]
[1772209553175,0.68912519,1944.8,1944.0,0.00153886]
[1772209553374,1.28,1944.7,1944.0,1.28752913]
[1772209553573,1.96912519,1944.7,1944.0,1.28752913]
[1772209553776,3.25471249,1944.7,1944.0,0.00153886]
[1772209554079,1.28,1945.1,1944.3,0.73256048]
[1772209555783,1.28528096,1945.2,1944.5,0.73256048]
[1772209555990,2.56428096,1945.2,1944.5,0.73256048]
[1772209557859,2.564202,1945.3,1944.7,0.73256048]
[1772209558179,2.5641588,1945.3,1944.7,0.73256048]
[1772209559080,1.279,1945.3,1944.7,0.73256048]
[1772209559274,2.56415503,1945.3,1944.7,0.73256048]
[1772209559781,2.56415503,1945.3,1944.7,2.0181009]
[1772209560087,2.56415503,1945.3,1944.7,2.01809693]
[1772209560396,2.56415104,1945.3,1944.8,0.73256048]
[1772209560856,0.68912519,1945.2,1944.5,0.73256048]
[1772209561178,0.68912519,1945.2,1944.2,8.51001604]
[1772209561575,0.68912519,1945.2,1944.2,1.28587593]
[1772209561760,3.09320169,1945.0,1944.1,0.0011]
[1772209561966,0.68912519,1944.8,1944.1,0.0011]
[1772209563083,0.68912519,1944.6,1944.1,0.0011]
[1772209563296,0.68912519,1944.5,1944.1,0.0011]
[1772209563465,0.68912519,1944.5,1944.0,0.00263886]
[1772209563667,1.279,1944.4,1944.0,0.00263886]
[1772209563872,1.2858098,1944.3,1944.0,0.00263886]
[1772209565466,1.97485231,1944.5,1944.0,0.00263886]
[1772209565668,5.14205354,1945.3,1944.1,0.73256048]
[1772209565669,1.28549821,1944.8,1944.1,0.73256048]
[1772209565992,5.14189728,1944.9,1944.2,1.28587593]
[1772209567003,0.68912519,1944.9,1944.1,2.01845968]
[1772209567173,2.5652297,1945.2,1944.4,0.73256048]
[1772209567375,2.56521874,1945.2,1944.4,0.73256048]
[1772209567684,0.001,1945.3,1944.6,0.73256048]
[1772209567886,0.001,1945.3,1944.7,1.28554532]
[1772209569491,0.001,1945.3,1944.7,2.0181058]
[1772209570728,0.001,1945.3,1944.7,1.28554532]
[1772209573139,0.001,1945.3,1944.7,0.68450175]
[1772209573441,0.001,1945.3,1944.5,5.14253034]
[1772209573442,1.28465455,1946.1,1945.2,0.68450175]
[1772209573729,1.28455685,1946.2,1945.4,0.68450175]
[1772209573897,1.98803435,1946.3,1945.4,0.68450175]
[1772209574093,0.70351401,1946.3,1945.4,0.68450175]
[1772209574404,0.70351401,1945.9,1944.8,6.46979975]
[1772209574618,0.70351401,1945.9,1944.9,0.68450175]
[1772209574818,2.11922675,1946.0,1944.9,0.68450175]
[1772209574998,2.11922675,1946.0,1945.1,0.68450175]
[1772209575200,0.00153886,1946.0,1945.3,0.68450175]
[1772209577125,0.00153886,1946.0,1945.4,1.9695845]
[1772209577828,0.00153886,1946.0,1945.4,1.28508275]
[1772209578005,0.00153886,1946.0,1945.4,1.9695845]
[1772209578616,0.00153886,1946.0,1945.4,1.28508275]
[1772209578820,0.00153886,1946.0,1945.5,0.68450175]
[1772209579028,0.70351401,1946.6,1945.8,1.28481858]
[1772209579029,1.98781326,1946.6,1945.8,1.28481858]
[1772209579277,0.70351401,1946.5,1945.8,1.28481858]
[1772209580828,1.28429925,1946.6,1945.8,1.28481858]
[1772209581043,2.79070025,1947.0,1946.0,1.28468653]
[1772209581044,2.56059859,1947.0,1946.0,1.28468653]
[1772209581258,2.56059859,1947.0,1946.1,0.68450175]
[1772209581545,0.70351401,1946.9,1946.1,0.68450175]
[1772209581704,0.001,1946.4,1946.1,0.68450175]
[1772209581911,0.70351401,1946.9,1946.1,0.68450175]
[1772209582543,0.70351401,1946.9,1946.0,2.35968653]
[1772209582706,0.70351401,1946.6,1945.9,1.28470466]
[1772209583114,1.28435653,1946.5,1945.8,5.13911534]
[1772209583315,1.28415861,1946.8,1945.8,8.22769359]
[1772209583539,1.98767262,1946.8,1945.8,8.22769359]
[1772209584252,0.70351401,1946.7,1945.8,5.13911534]
[1772209584756,1.28415861,1946.8,1945.4,1.2850334]
[1772209584757,0.70351401,1946.5,1945.4,1.2850334]
[1772209584925,0.70351401,1946.3,1945.4,1.2850334]
[1772209585127,1.28455451,1946.2,1945.4,1.2850334]
[1772209586043,0.70351401,1946.1,1945.3,1.96961869]
[1772209586446,1.97751401,1946.1,1945.3,1.96961869]
[1772209587447,3.2610427,1946.3,1945.4,0.68450175]
[1772209587647,0.70351401,1946.2,1945.1,1.28524737]
[1772209587857,0.70351401,1945.9,1945.1,1.28524737]
[1772209589148,1.28495065,1945.6,1945.0,0.00153886]
[1772209589351,1.98846466,1945.6,1945.0,0.00153886]
[1772209590268,0.70351401,1945.6,1945.0,0.00153886]
[1772209591364,2.46893854,1945.7,1945.0,0.00153886]
[1772209591570,1.28493854,1945.7,1945.0,0.00153886]
[1772209591935,1.28482202,1945.8,1945.0,0.68604061]
[1772209592257,3.26131909,1945.9,1945.0,0.68604061]
[1772209592863,0.70351401,1945.6,1945.0,0.00153886]
[1772209593445,1.2850167,1945.5,1945.1,0.0011]
[1772209593648,1.98851238,1945.6,1945.1,0.0011]
[1772209596366,2.56084182,1945.8,1945.1,0.0011]
[1772209597346,3.26435583,1945.8,1945.1,0.0011]
[1772209597541,1.28495065,1945.6,1945.1,0.0011]
[1772209597740,0.70351401,1945.5,1945.1,0.0011]
[1772209600748,1.98853464,1945.5,1945.1,0.0011]
[1772209601971,1.28502063,1945.5,1945.1,0.0011]
[1772209602279,2.56086065,1945.8,1945.1,0.64418341]
[1772209602776,2.56086065,1945.8,1945.1,1.92942419]
[1772209602972,3.21576423,1945.8,1945.1,1.92942419]
[1772209603150,0.65490358,1945.7,1945.1,1.28634078]
[1772209603654,1.276,1945.8,1945.2,0.64308341]
[1772209603848,2.56082274,1945.8,1945.2,0.64308341]
[1772209604876,2.56082274,1945.8,1945.3,1.28514882]
[1772209606255,1.276,1945.8,1945.3,1.28514882]
[1772209606883,1.276,1945.8,1945.3,1.92823223]
[1772209607084,2.56082016,1945.8,1945.3,1.92823223]
[1772209607692,1.276,1945.8,1945.3,1.92823223]
[1772209608484,2.56083045,1945.8,1945.3,0.64308341]
[1772209608692,0.65490358,1945.6,1945.2,0.0011]
[1772209608981,1.2850167,1945.5,1945.2,0.0011]
[1772209609368,1.93985459,1945.6,1945.2,0.0011]
[1772209610690,1.28493612,1945.7,1945.2,0.0011]
[1772209612189,0.65490358,1945.6,1945.2,0.0011]
[1772209613393,1.2850167,1945.5,1945.0,0.00263886]
[1772209613582,0.65490358,1945.4,1945.0,0.00263886]
[1772209613890,1.286,1945.4,1945.0,0.00263886]
[1772209615098,0.65490358,1945.3,1944.4,0.64308341]
[1772209615276,0.65490358,1945.1,1944.5,1.28567755]
[1772209615474,0.65490358,1945.1,1944.4,1.92882708]
[1772209617494,1.94022602,1945.1,1944.4,1.92882708]
[1772209617689,0.65490358,1945.0,1944.4,1.92882009]
[1772209618200,1.28532244,1945.1,1944.4,1.92882009]
[1772209618801,5.79587796,1945.2,1944.5,0.64308341]
[1772209618802,1.94016803,1945.2,1944.5,0.64308341]
[1772209619603,1.94016803,1945.2,1944.6,1.28561143]
[1772209620681,0.65490358,1945.6,1944.7,0.64308341]
[1772209620876,1.288,1945.5,1944.7,0.64308341]
[1772209621200,5.79490943,1945.6,1944.7,0.64308341]
[1772209621201,1.94290358,1945.6,1944.8,0.64308341]
[1772209621905,3.22790945,1945.6,1944.9,1.92849654]
[1772209622704,1.93968367,1945.9,1945.0,0.64308341]
[1772209623402,0.65490358,1945.8,1945.0,0.64308341]
[1772209624208,1.28480349,1945.9,1945.2,0.64308341]
[1772209624400,5.795332,1946.0,1945.2,0.64308341]
[1772209624401,1.28627738,1946.0,1945.2,0.64308341]
[1772209625881,0.65490358,1945.9,1945.1,1.28528096]
[1772209626081,1.93972216,1945.8,1945.0,1.92842073]
[1772209626296,0.65490358,1945.6,1945.0,0.64308341]
[1772209627399,0.65490358,1945.6,1944.9,1.28541121]
[1772209628310,1.2850167,1945.5,1944.9,1.28541121]
[1772209628983,1.93985708,1945.6,1944.9,1.28541121]
[1772209629183,2.57189338,1945.7,1945.0,0.64308341]
[1772209629789,2.57189124,1945.7,1945.0,0.64308341]
[1772209630178,2.57189124,1945.7,1945.1,1.28528096]
[1772209630581,0.6676574,1945.6,1945.0,1.28530491]
[1772209631211,0.6676574,1945.6,1944.9,1.28536497]
[1772209631410,0.6676574,1945.6,1944.8,1.9146072]
[1772209632387,0.6676574,1945.4,1944.6,1.28558395]
[1772209632708,4.65245243,1945.5,1944.6,1.28558395]
[1772209632709,1.288,1945.3,1944.6,1.28558395]
[1772209632898,1.9556574,1945.3,1944.6,1.28558395]
[1772209633915,0.6676574,1945.2,1944.5,0.0011]
[1772209634127,0.6676574,1945.2,1944.5,1.28677434]
[1772209634421,0.6676574,1945.0,1944.5,0.0011]
[1772209635524,0.6676574,1945.0,1944.9,0.0011]
[1772209635834,0.6676574,1945.0,1944.5,0.0011]
[1772209636398,3.24107053,1944.9,1944.5,0.0011]
[1772209637032,1.9556574,1944.9,1944.5,0.0011]
[1772209637213,5.14129924,1945.1,1944.5,0.0011]
[1772209637214,1.9529395,1945.1,1944.5,0.0011]
[1772209638319,0.6676574,1945.0,1944.5,0.0011]
[1772209638520,1.95307053,1944.9,1944.5,0.0011]
[1772209638925,0.6676574,1945.2,1944.5,0.63027061]
[1772209639097,1.29,1945.1,1944.5,0.63027061]
[1772209640602,2.57528445,1945.1,1944.6,1.28561143]
[1772209640915,2.57528445,1945.1,1944.5,1.91594816]
[1772209641117,3.24294185,1945.1,1944.5,1.28677755]
[1772209642506,3.24294185,1945.1,1944.5,0.0011]
[1772209643334,0.6676574,1945.0,1944.5,0.0011]
[1772209643545,2.57528445,1945.1,1944.4,0.0011]
[1772209643546,3.36743573,1944.9,1944.4,0.0011]
[1772209643715,0.6676574,1944.8,1944.4,0.0011]
[1772209644033,3.36743573,1944.9,1944.2,0.0011]
[1772209644034,0.6676574,1944.6,1944.2,0.0011]
[1772209644532,0.6676574,1944.8,1944.2,1.28696888]
[1772209644834,2.57754532,1944.7,1944.2,0.0011]
[1772209645535,1.292,1944.7,1944.2,0.63027061]
[1772209645719,0.6676574,1945.7,1944.2,3.36853573]
[1772209645922,0.6676574,1945.5,1944.3,0.62917061]
[1772209646815,0.6676574,1945.3,1944.5,0.62917061]
[1772209647012,1.292,1945.2,1944.5,0.62917061]
[1772209647216,1.9596574,1945.3,1944.5,0.62917061]
[1772209647725,1.292,1945.3,1944.5,0.62917061]
[1772209648815,1.292,1945.3,1944.7,0.62917061]
[1772209649137,2.57604746,1945.5,1944.7,0.62917061]
[1772209650226,0.6676574,1945.4,1944.7,0.62917061]
[1772209650430,0.001,1945.2,1944.7,0.62917061]
[1772209651621,0.001,1945.2,1944.7,1.91466283]
[1772209653746,0.001,1945.2,1944.7,1.28549222]
[1772209655647,0.001,1945.2,1944.7,0.62917061]
[1772209657255,0.6686574,1945.2,1944.6,6.22139554]
[1772209658862,0.6686574,1945.2,1944.6,6.8455872]
[1772209660231,0.001,1945.2,1944.6,6.22139554]
[1772209660449,0.001,1945.2,1944.7,0.65217725]
[1772209660655,0.001,1945.2,1944.9,0.65217725]
[1772209661351,0.64386702,1944.6,1944.2,0.0011]
[1772209661557,0.63823405,1944.6,1944.2,0.0011]
[1772209661748,0.63823405,1944.6,1944.0,0.00263886]
[1772209662056,0.63823405,1944.6,1944.1,5.14637839]
[1772209662655,1.92952814,1944.6,1944.1,5.14637839]
[1772209662833,0.64386702,1944.5,1944.1,5.14637839]
[1772209664240,0.64386702,1944.5,1944.2,0.0011]
[1772209664434,0.64386702,1944.5,1944.1,5.14637839]
[1772209664637,1.28574367,1944.4,1944.1,5.14637839]
[1772209665036,1.28574367,1944.4,1944.0,0.00263886]
[1772209666032,1.92961069,1944.4,1944.0,0.00263886]
[1772209668132,0.64386702,1944.3,1944.0,0.00263886]
[1772209668932,1.28587593,1944.2,1944.0,0.00263886]
[1772209669149,1.92967682,1944.3,1944.0,0.00263886]
[1772209670233,0.64386702,1944.2,1944.0,0.00263886]
[1772209670434,3.04992978,1944.1,1943.5,1.2873892]
[1772209670661,0.64386702,1944.0,1943.6,0.0022]
[1772209671355,1.9299414,1943.9,1943.6,0.0022]